[Event "Early-Titled-Tuesday-Blitz-January-16-2024"]
[Site "Chess.com"]
[Date "2024.01.16"]
[Round "1"]
[White "AGW2016"]
[Black "VeraVujovic"]
[Result "1-0"]
[WhiteElo "2599"]
[BlackElo "2223"]
[TimeControl "180+1"]
[EndTime "8:06:00 PST"]
[Termination "AGW2016 won by resignation"]

1. d4 {[%clk 0:03:00.9]} 1... d5 {[%clk 0:02:59.6]} 2. Nc3 {[%clk 0:03:00.4]}
2... Nf6 {[%clk 0:02:56.3]} 3. Bf4 {[%clk 0:02:58.5]} 3... c5 {[%clk 0:02:51.8]}
4. e4 {[%clk 0:02:58.3]} 4... Nxe4 {[%clk 0:02:41.4]} 5. Nxe4 {[%clk 0:02:58.4]}
5... dxe4 {[%clk 0:02:40.3]} 6. dxc5 {[%clk 0:02:59.3]} 6... Qxd1+ {[%clk
0:02:31.5]} 7. Rxd1 {[%clk 0:03:00.2]} 7... Nc6 {[%clk 0:02:22.1]} 8. Bb5 {[%clk
0:02:59.1]} 8... Bd7 {[%clk 0:02:21.3]} 9. c3 {[%clk 0:02:57.3]} 9... a6 {[%clk
0:02:18.1]} 10. Ba4 {[%clk 0:02:56.7]} 10... f6 {[%clk 0:01:53.2]} 11. b4 {[%clk
0:02:54.7]} 11... e5 {[%clk 0:01:52.9]} 12. Be3 {[%clk 0:02:54.2]} 12... f5
{[%clk 0:01:42.7]} 13. g3 {[%clk 0:02:52.6]} 13... h6 {[%clk 0:01:42]} 14. h4
{[%clk 0:02:52]} 14... Be7 {[%clk 0:01:41.5]} 15. Ne2 {[%clk 0:02:51.4]} 15...
Rc8 {[%clk 0:01:39.2]} 16. a3 {[%clk 0:02:49.2]} 16... Nb8 {[%clk 0:01:37.5]}
17. Bb3 {[%clk 0:02:45.3]} 17... Nc6 {[%clk 0:01:26.3]} 18. Bd5 {[%clk
0:02:42.9]} 18... g6 {[%clk 0:01:13.1]} 19. a4 {[%clk 0:02:13.7]} 19... Nd8
{[%clk 0:01:07.8]} 20. Nc1 {[%clk 0:02:09.3]} 20... Bxa4 {[%clk 0:01:06.5]} 21.
Nb3 {[%clk 0:02:03.5]} 21... Nc6 {[%clk 0:01:00.3]} 22. Rd2 {[%clk 0:02:01.5]}
22... Rd8 {[%clk 0:00:57.3]} 23. Bxc6+ {[%clk 0:01:58.8]} 23... bxc6 {[%clk
0:00:47.5]} 24. Na5 {[%clk 0:01:59.7]} 24... Rxd2 {[%clk 0:00:46]} 25. Kxd2
{[%clk 0:01:59.1]} 25... Bd8 {[%clk 0:00:45.9]} 26. Ra1 {[%clk 0:01:58.5]} 26...
Bb5 {[%clk 0:00:45.4]} 27. Nb7 {[%clk 0:01:57.6]} 27... Bc7 {[%clk 0:00:43.4]}
28. Nd6+ {[%clk 0:01:57.4]} 28... Bxd6 {[%clk 0:00:43.2]} 29. cxd6 {[%clk
0:01:58.3]} 29... Kd7 {[%clk 0:00:43.6]} 30. Bc5 {[%clk 0:01:58.8]} 30... f4
{[%clk 0:00:42.5]} 31. Re1 {[%clk 0:01:52.3]} 31... Bd3 {[%clk 0:00:39.9]} 32.
f3 {[%clk 0:01:47]} 32... fxg3 {[%clk 0:00:37]} 33. fxe4 {[%clk 0:01:47.7]}
33... Bc4 {[%clk 0:00:35.3]} 34. Rg1 {[%clk 0:01:48.4]} 34... g5 {[%clk
0:00:30.1]} 35. Rxg3 {[%clk 0:01:47.9]} 35... Rg8 {[%clk 0:00:29.8]} 36. hxg5
{[%clk 0:01:46.8]} 36... Rxg5 {[%clk 0:00:28.3]} 37. Rf3 {[%clk 0:01:42.8]}
37... Rg2+ {[%clk 0:00:27.8]} 38. Kc1 {[%clk 0:01:41.1]} 38... Re2 {[%clk
0:00:21.9]} 39. Rh3 {[%clk 0:01:38]} 39... Re1+ {[%clk 0:00:20.3]} 40. Kd2
{[%clk 0:01:35.8]} 40... Re2+ {[%clk 0:00:21]} 41. Kd1 {[%clk 0:01:36.5]} 41...
Rxe4 {[%clk 0:00:20.1]} 42. Rxh6 {[%clk 0:01:36.9]} 42... Be2+ {[%clk
0:00:19.6]} 43. Kd2 {[%clk 0:01:36.7]} 43... Bc4 {[%clk 0:00:18.5]} 44. Rh7+
{[%clk 0:01:36.6]} 44... Kd8 {[%clk 0:00:18.7]} 45. Bb6+ {[%clk 0:01:35.9]}
45... Ke8 {[%clk 0:00:18.5]} 46. d7+ {[%clk 0:01:36.5]} 1-0

[Event "Early-Titled-Tuesday-Blitz-January-16-2024"]
[Site "Chess.com"]
[Date "2024.01.16"]
[Round "1"]
[White "Njal28"]
[Black "FoggyMorning"]
[Result "1-0"]
[WhiteElo "3027"]
[BlackElo "2524"]
[TimeControl "180+1"]
[EndTime "8:06:04 PST"]
[Termination "Njal28 won on time"]

1. d4 {[%clk 0:03:00.9]} 1... Nf6 {[%clk 0:02:53.4]} 2. c4 {[%clk 0:02:58.5]}
2... e6 {[%clk 0:02:53.4]} 3. Nc3 {[%clk 0:02:57.8]} 3... Bb4 {[%clk 0:02:54.1]}
4. e3 {[%clk 0:02:57.9]} 4... O-O {[%clk 0:02:52.9]} 5. a3 {[%clk 0:02:57.7]}
5... Bxc3+ {[%clk 0:02:51.5]} 6. bxc3 {[%clk 0:02:58.6]} 6... d5 {[%clk
0:02:50.9]} 7. cxd5 {[%clk 0:02:56]} 7... exd5 {[%clk 0:02:46.9]} 8. Bd3 {[%clk
0:02:56.1]} 8... Bg4 {[%clk 0:02:38.4]} 9. Ne2 {[%clk 0:02:44.3]} 9... c5 {[%clk
0:02:31]} 10. f3 {[%clk 0:02:42.2]} 10... Bh5 {[%clk 0:02:24.2]} 11. O-O {[%clk
0:02:42.4]} 11... Bg6 {[%clk 0:02:18.1]} 12. Ng3 {[%clk 0:02:40.2]} 12... Re8
{[%clk 0:02:11.5]} 13. Ra2 {[%clk 0:02:32.5]} 13... Nbd7 {[%clk 0:01:52.5]} 14.
Re2 {[%clk 0:02:30.3]} 14... Qa5 {[%clk 0:01:44.7]} 15. Bb2 {[%clk 0:02:20.2]}
15... Rad8 {[%clk 0:00:53.4]} 16. e4 {[%clk 0:02:10.2]} 16... cxd4 {[%clk
0:00:45.8]} 17. cxd4 {[%clk 0:02:10.4]} 17... dxe4 {[%clk 0:00:37.6]} 18. fxe4
{[%clk 0:02:11.3]} 18... Nh5 {[%clk 0:00:38.2]} 19. Nf5 {[%clk 0:01:58.9]} 19...
Ndf6 {[%clk 0:00:24.5]} 20. e5 {[%clk 0:01:41.5]} 20... Nd5 {[%clk 0:00:22]} 21.
Ref2 {[%clk 0:01:24.3]} 21... Bxf5 {[%clk 0:00:18.3]} 22. Rxf5 {[%clk
0:01:17.6]} 22... Ne3 {[%clk 0:00:18.2]} 23. Qxh5 {[%clk 0:01:16.4]} 23... Nxf5
{[%clk 0:00:15.6]} 24. Qxf5 {[%clk 0:01:14.3]} 24... Qc7 {[%clk 0:00:03.3]} 25.
Qxh7+ {[%clk 0:01:14]} 25... Kf8 {[%clk 0:00:04.2]} 26. Qh8+ {[%clk 0:01:11.9]}
26... Ke7 {[%clk 0:00:04.9]} 27. Qxg7 {[%clk 0:01:12.6]} 27... Ke6 {[%clk
0:00:02.3]} 28. Be4 {[%clk 0:01:09.4]} 1-0

[Event "Early-Titled-Tuesday-Blitz-January-16-2024"]
[Site "Chess.com"]
[Date "2024.01.16"]
[Round "1"]
[White "francyIM"]
[Black "Pakarma"]
[Result "1-0"]
[WhiteElo "2816"]
[BlackElo "2443"]
[TimeControl "180+1"]
[EndTime "8:06:04 PST"]
[Termination "francyIM won by resignation"]

1. e4 {[%clk 0:03:00.3]} 1... c5 {[%clk 0:02:58.4]} 2. Nf3 {[%clk 0:02:57.5]}
2... Nc6 {[%clk 0:02:58.5]} 3. b3 {[%clk 0:02:53.8]} 3... d6 {[%clk 0:02:51.3]}
4. Bb5 {[%clk 0:02:48.2]} 4... Bd7 {[%clk 0:02:50.8]} 5. O-O {[%clk 0:02:47]}
5... Nf6 {[%clk 0:02:50.1]} 6. Re1 {[%clk 0:02:46.8]} 6... e5 {[%clk 0:02:50.1]}
7. Bf1 {[%clk 0:02:46.1]} 7... Be7 {[%clk 0:02:49.7]} 8. h3 {[%clk 0:02:46.6]}
8... O-O {[%clk 0:02:49.8]} 9. c3 {[%clk 0:02:46.9]} 9... d5 {[%clk 0:02:24.1]}
10. exd5 {[%clk 0:02:44.4]} 10... Nxd5 {[%clk 0:02:25]} 11. Nxe5 {[%clk
0:02:43.7]} 11... Nxe5 {[%clk 0:02:22.8]} 12. Rxe5 {[%clk 0:02:44.4]} 12... Bc6
{[%clk 0:02:19.9]} 13. Re1 {[%clk 0:02:34.3]} 13... Bf6 {[%clk 0:02:11.1]} 14.
Na3 {[%clk 0:02:31.6]} 14... Re8 {[%clk 0:02:01]} 15. Rxe8+ {[%clk 0:02:20.1]}
15... Qxe8 {[%clk 0:02:01.9]} 16. Nc4 {[%clk 0:02:20]} 16... Rd8 {[%clk
0:02:00.2]} 17. Qc2 {[%clk 0:02:07.9]} 17... b5 {[%clk 0:01:33.3]} 18. Ne3
{[%clk 0:02:06.5]} 18... Nf4 {[%clk 0:01:28.6]} 19. Qf5 {[%clk 0:01:59.2]} 19...
Qe5 {[%clk 0:01:06.7]} 20. Qxe5 {[%clk 0:01:47.8]} 20... Bxe5 {[%clk 0:01:07.6]}
21. Ng4 {[%clk 0:01:47.7]} 21... Bc7 {[%clk 0:01:01.9]} 22. Ba3 {[%clk
0:01:44.8]} 22... Ne6 {[%clk 0:00:55.6]} 23. Rd1 {[%clk 0:01:43.2]} 23... a5
{[%clk 0:00:42.8]} 24. Bb2 {[%clk 0:01:36.3]} 24... f5 {[%clk 0:00:33.1]} 25.
Ne3 {[%clk 0:01:35.5]} 25... g6 {[%clk 0:00:28.1]} 26. d4 {[%clk 0:01:33.5]}
26... cxd4 {[%clk 0:00:23]} 27. cxd4 {[%clk 0:01:34.4]} 27... Bb7 {[%clk
0:00:17.7]} 28. d5 {[%clk 0:01:22.4]} 28... Nf4 {[%clk 0:00:16.7]} 29. Bxb5
{[%clk 0:01:22.2]} 29... Nxd5 {[%clk 0:00:16]} 30. Bc4 {[%clk 0:01:22.2]} 1-0

[Event "Early-Titled-Tuesday-Blitz-January-16-2024"]
[Site "Chess.com"]
[Date "2024.01.16"]
[Round "1"]
[White "NovakCabarkapa"]
[Black "Eesha-Karavade"]
[Result "1-0"]
[WhiteElo "2807"]
[BlackElo "2437"]
[TimeControl "180+1"]
[EndTime "8:06:04 PST"]
[Termination "NovakCabarkapa won by resignation"]

1. b3 {[%clk 0:03:00.9]} 1... d5 {[%clk 0:02:54.1]} 2. Bb2 {[%clk 0:03:00.3]}
2... Bg4 {[%clk 0:02:54.1]} 3. f3 {[%clk 0:02:59.7]} 3... Bh5 {[%clk 0:02:49.9]}
4. Nh3 {[%clk 0:02:57.8]} 4... f6 {[%clk 0:02:47.3]} 5. d4 {[%clk 0:02:55.5]}
5... e6 {[%clk 0:02:42]} 6. e3 {[%clk 0:02:53]} 6... Bd6 {[%clk 0:02:40.8]} 7.
Nd2 {[%clk 0:02:51.2]} 7... Ne7 {[%clk 0:02:39]} 8. c4 {[%clk 0:02:50.1]} 8...
c6 {[%clk 0:02:39.3]} 9. Bd3 {[%clk 0:02:49.4]} 9... Bg6 {[%clk 0:02:36.7]} 10.
Bxg6+ {[%clk 0:02:46.2]} 10... hxg6 {[%clk 0:02:35.8]} 11. Qc2 {[%clk
0:02:44.6]} 11... g5 {[%clk 0:02:34.5]} 12. O-O-O {[%clk 0:02:41.4]} 12... Nd7
{[%clk 0:02:33]} 13. Kb1 {[%clk 0:02:41.1]} 13... Qa5 {[%clk 0:02:28.6]} 14. e4
{[%clk 0:02:37]} 14... O-O-O {[%clk 0:02:23.8]} 15. c5 {[%clk 0:02:34.6]} 15...
Bf4 {[%clk 0:02:18.7]} 16. Bc3 {[%clk 0:02:25.2]} 16... Qc7 {[%clk 0:02:17.8]}
17. Nf1 {[%clk 0:02:22.7]} 17... Kb8 {[%clk 0:02:07.3]} 18. b4 {[%clk
0:02:15.7]} 18... Nf8 {[%clk 0:02:05.4]} 19. Nf2 {[%clk 0:02:01.1]} 19... Qd7
{[%clk 0:01:33.4]} 20. g3 {[%clk 0:02:00.1]} 20... Bc7 {[%clk 0:01:33.2]} 21.
Ne3 {[%clk 0:01:56.4]} 21... Nfg6 {[%clk 0:01:12.5]} 22. a4 {[%clk 0:01:54.6]}
22... Rh5 {[%clk 0:01:08.4]} 23. Nd3 {[%clk 0:01:36.8]} 23... Rdh8 {[%clk
0:01:06.9]} 24. Rdg1 {[%clk 0:01:22]} 24... dxe4 {[%clk 0:00:47.4]} 25. fxe4
{[%clk 0:01:22.9]} 25... f5 {[%clk 0:00:47.8]} 26. e5 {[%clk 0:01:22.7]} 26...
Nd5 {[%clk 0:00:46.3]} 27. Nc4 {[%clk 0:01:18.9]} 27... Nge7 {[%clk 0:00:30.6]}
28. Bd2 {[%clk 0:01:18.5]} 28... Ng8 {[%clk 0:00:22.3]} 29. Qb2 {[%clk
0:01:18.5]} 29... Nh6 {[%clk 0:00:20]} 30. b5 {[%clk 0:01:18.7]} 30... Ng4
{[%clk 0:00:19.6]} 31. b6 {[%clk 0:01:19]} 31... axb6 {[%clk 0:00:18.8]} 32.
cxb6 {[%clk 0:01:19.9]} 32... Bd8 {[%clk 0:00:19.1]} 33. Nc5 {[%clk 0:01:20.5]}
33... Qc8 {[%clk 0:00:18.9]} 34. Nd6 {[%clk 0:01:20.1]} 1-0

[Event "Early-Titled-Tuesday-Blitz-January-16-2024"]
[Site "Chess.com"]
[Date "2024.01.16"]
[Round "1"]
[White "TitarovVasiliYouTube"]
[Black "Jospem"]
[Result "0-1"]
[WhiteElo "2537"]
[BlackElo "3078"]
[TimeControl "180+1"]
[EndTime "8:06:06 PST"]
[Termination "Jospem won by resignation"]

1. e4 {[%clk 0:02:56]} 1... c5 {[%clk 0:02:59.4]} 2. Nf3 {[%clk 0:02:53.3]} 2...
d6 {[%clk 0:03:00]} 3. d4 {[%clk 0:02:51.9]} 3... cxd4 {[%clk 0:03:00.9]} 4.
Nxd4 {[%clk 0:02:51.2]} 4... a6 {[%clk 0:02:58.7]} 5. c4 {[%clk 0:02:50.9]} 5...
e6 {[%clk 0:02:58.8]} 6. Nc3 {[%clk 0:02:51]} 6... Nf6 {[%clk 0:02:58.9]} 7. Be2
{[%clk 0:02:50.6]} 7... b6 {[%clk 0:02:59.2]} 8. Be3 {[%clk 0:02:48.9]} 8... Bb7
{[%clk 0:02:59.4]} 9. f3 {[%clk 0:02:48.9]} 9... Nbd7 {[%clk 0:02:58]} 10. O-O
{[%clk 0:02:48.4]} 10... Be7 {[%clk 0:02:58.2]} 11. Qd2 {[%clk 0:02:48]} 11...
O-O {[%clk 0:02:58.4]} 12. Rfc1 {[%clk 0:02:45.8]} 12... Rc8 {[%clk 0:02:57.7]}
13. a4 {[%clk 0:02:45.5]} 13... Nc5 {[%clk 0:02:49.3]} 14. b4 {[%clk 0:01:54.8]}
14... e5 {[%clk 0:02:40.1]} 15. bxc5 {[%clk 0:01:48.9]} 15... exd4 {[%clk
0:02:39.6]} 16. Bxd4 {[%clk 0:01:46.5]} 16... bxc5 {[%clk 0:02:39.9]} 17. Be3
{[%clk 0:01:46.4]} 17... Nd7 {[%clk 0:02:38.1]} 18. Rab1 {[%clk 0:01:42.1]}
18... Bc6 {[%clk 0:02:38.1]} 19. Nd5 {[%clk 0:01:05.6]} 19... Bxd5 {[%clk
0:02:38.2]} 20. Qxd5 {[%clk 0:00:59]} 20... Ne5 {[%clk 0:02:35.2]} 21. Rb7
{[%clk 0:00:52.7]} 21... Bf6 {[%clk 0:02:18.9]} 22. Rd1 {[%clk 0:00:33.2]} 22...
Qa5 {[%clk 0:02:15]} 23. f4 {[%clk 0:00:19.1]} 23... Nc6 {[%clk 0:02:07.4]} 24.
e5 {[%clk 0:00:17.1]} 24... dxe5 {[%clk 0:02:03.2]} 25. Qxc5 {[%clk 0:00:17.6]}
25... exf4 {[%clk 0:02:00.9]} 26. Bf2 {[%clk 0:00:15.1]} 26... Qxa4 {[%clk
0:01:58.2]} 27. Qb6 {[%clk 0:00:09.3]} 27... Rfe8 {[%clk 0:01:55.9]} 28. Bf3
{[%clk 0:00:08]} 28... Ne5 {[%clk 0:01:56.4]} 29. Qb3 {[%clk 0:00:06.4]} 29...
Nxf3+ {[%clk 0:01:55.6]} 30. gxf3 {[%clk 0:00:05.8]} 30... Qxb3 {[%clk 0:01:55]}
31. Rxb3 {[%clk 0:00:06.7]} 31... Rxc4 {[%clk 0:01:55.5]} 32. Ra3 {[%clk
0:00:06.7]} 32... Rc6 {[%clk 0:01:55.7]} 33. Kf1 {[%clk 0:00:05.5]} 33... g5
{[%clk 0:01:55.8]} 34. Re1 {[%clk 0:00:05.8]} 34... Rd8 {[%clk 0:01:55.7]} 35.
Re2 {[%clk 0:00:03.5]} 35... Kg7 {[%clk 0:01:56]} 36. Rea2 {[%clk 0:00:03.7]}
36... Rdd6 {[%clk 0:01:55.8]} 37. Kg2 {[%clk 0:00:02.9]} 37... Kg6 {[%clk
0:01:56.2]} 38. Kh3 {[%clk 0:00:03.5]} 38... h5 {[%clk 0:01:56.5]} 39. Kg2
{[%clk 0:00:04.4]} 39... Re6 {[%clk 0:01:56.7]} 40. h3 {[%clk 0:00:04.8]} 40...
Be7 {[%clk 0:01:56.8]} 41. Ra5 {[%clk 0:00:05.4]} 41... f5 {[%clk 0:01:56]} 42.
Rd2 {[%clk 0:00:04.3]} 42... Bb4 {[%clk 0:01:55.8]} 43. Rda2 {[%clk 0:00:01.1]}
43... Bxa5 {[%clk 0:01:56.1]} 44. Rxa5 {[%clk 0:00:02]} 44... g4 {[%clk
0:01:56.7]} 45. hxg4 {[%clk 0:00:01.5]} 45... hxg4 {[%clk 0:01:57.6]} 46. fxg4
{[%clk 0:00:02.4]} 46... fxg4 {[%clk 0:01:58.5]} 0-1

[Event "Early-Titled-Tuesday-Blitz-January-16-2024"]
[Site "Chess.com"]
[Date "2024.01.16"]
[Round "1"]
[White "karinachess1"]
[Black "Trojan-Knight"]
[Result "1-0"]
[WhiteElo "2598"]
[BlackElo "2168"]
[TimeControl "180+1"]
[EndTime "8:06:06 PST"]
[Termination "karinachess1 won on time"]

1. d4 {[%clk 0:03:00.9]} 1... Nf6 {[%clk 0:02:59.4]} 2. c4 {[%clk 0:03:00.9]}
2... g6 {[%clk 0:02:54.8]} 3. g3 {[%clk 0:03:01.1]} 3... Bg7 {[%clk 0:02:53]} 4.
Bg2 {[%clk 0:03:01.5]} 4... d5 {[%clk 0:02:52.1]} 5. cxd5 {[%clk 0:02:59.9]}
5... Nxd5 {[%clk 0:02:52.1]} 6. Nc3 {[%clk 0:03:00.3]} 6... Nb6 {[%clk
0:02:49.2]} 7. Nf3 {[%clk 0:03:00.7]} 7... Nc6 {[%clk 0:02:48.3]} 8. e3 {[%clk
0:03:00.4]} 8... O-O {[%clk 0:02:48]} 9. O-O {[%clk 0:03:00.5]} 9... Re8 {[%clk
0:02:48.1]} 10. Nh4 {[%clk 0:02:53.9]} 10... e5 {[%clk 0:02:29.3]} 11. d5 {[%clk
0:02:53.9]} 11... Ne7 {[%clk 0:02:26.1]} 12. e4 {[%clk 0:02:48.6]} 12... Bd7
{[%clk 0:02:16.3]} 13. f4 {[%clk 0:02:46.5]} 13... exf4 {[%clk 0:02:08.6]} 14.
Bxf4 {[%clk 0:02:46.1]} 14... Nc4 {[%clk 0:02:05.9]} 15. Qb3 {[%clk 0:02:44.2]}
15... Ne5 {[%clk 0:01:46.4]} 16. Rad1 {[%clk 0:02:33.1]} 16... Rf8 {[%clk
0:01:37.8]} 17. Qxb7 {[%clk 0:02:01.9]} 17... Rb8 {[%clk 0:01:31.5]} 18. Qxa7
{[%clk 0:02:02.2]} 18... Rxb2 {[%clk 0:01:24.8]} 19. Rf2 {[%clk 0:01:56]} 19...
Rxf2 {[%clk 0:01:20.2]} 20. Qxf2 {[%clk 0:01:56.9]} 20... Qb8 {[%clk 0:00:55.6]}
21. Qc5 {[%clk 0:01:50.6]} 21... Nc8 {[%clk 0:00:48.3]} 22. Rb1 {[%clk 0:01:41]}
22... Qa8 {[%clk 0:00:39.1]} 23. Qxc7 {[%clk 0:01:39]} 23... Ng4 {[%clk
0:00:21.3]} 24. h3 {[%clk 0:01:29.6]} 24... Bd4+ {[%clk 0:00:20.6]} 25. Kh1
{[%clk 0:01:28]} 25... Nf2+ {[%clk 0:00:20.8]} 26. Kh2 {[%clk 0:01:28.4]} 26...
Qa3 {[%clk 0:00:07.3]} 27. Rb3 {[%clk 0:01:24.1]} 27... Qa6 {[%clk 0:00:03.7]}
28. Qxd7 {[%clk 0:01:19]} 28... Nb6 {[%clk 0:00:02.2]} 29. Qb5 {[%clk
0:01:15.2]} 29... Qa7 {[%clk 0:00:01.5]} 30. Ne2 {[%clk 0:01:15.2]} 1-0

[Event "Early-Titled-Tuesday-Blitz-January-16-2024"]
[Site "Chess.com"]
[Date "2024.01.16"]
[Round "1"]
[White "albi1999"]
[Black "cristiano78"]
[Result "1-0"]
[WhiteElo "2615"]
[BlackElo "2268"]
[TimeControl "180+1"]
[EndTime "8:06:14 PST"]
[Termination "albi1999 won by resignation"]

1. d4 {[%clk 0:03:00]} 1... Nf6 {[%clk 0:02:59.8]} 2. Nf3 {[%clk 0:02:59.6]}
2... g6 {[%clk 0:02:59.9]} 3. Nc3 {[%clk 0:02:58.6]} 3... Bg7 {[%clk 0:03:00.4]}
4. e4 {[%clk 0:02:58.3]} 4... d6 {[%clk 0:03:01]} 5. h3 {[%clk 0:02:55.9]} 5...
O-O {[%clk 0:03:00.8]} 6. Bd3 {[%clk 0:02:54.8]} 6... c6 {[%clk 0:03:00.6]} 7.
O-O {[%clk 0:02:54.8]} 7... Nbd7 {[%clk 0:03:00.1]} 8. e5 {[%clk 0:02:53.1]}
8... Nd5 {[%clk 0:02:59.8]} 9. Nxd5 {[%clk 0:02:51.1]} 9... cxd5 {[%clk
0:02:59.4]} 10. exd6 {[%clk 0:02:51]} 10... exd6 {[%clk 0:02:55.2]} 11. c3
{[%clk 0:02:49.1]} 11... Nf6 {[%clk 0:02:54.7]} 12. Qb3 {[%clk 0:02:47.6]} 12...
b6 {[%clk 0:02:53.4]} 13. Re1 {[%clk 0:02:42.2]} 13... Be6 {[%clk 0:02:52.4]}
14. Qc2 {[%clk 0:02:31.3]} 14... Re8 {[%clk 0:02:49.2]} 15. Bf4 {[%clk
0:02:30.1]} 15... Bf8 {[%clk 0:02:38.8]} 16. Re2 {[%clk 0:02:26.1]} 16... Qc7
{[%clk 0:02:38.1]} 17. Rae1 {[%clk 0:02:24.8]} 17... Bd7 {[%clk 0:02:37.9]} 18.
Bg5 {[%clk 0:02:22.3]} 18... Bg7 {[%clk 0:02:34.6]} 19. Rxe8+ {[%clk 0:02:15]}
19... Rxe8 {[%clk 0:02:32.9]} 20. Rxe8+ {[%clk 0:02:15.6]} 20... Bxe8 {[%clk
0:02:32.9]} 21. Qe2 {[%clk 0:02:16.5]} 21... Bc6 {[%clk 0:02:28]} 22. Nd2 {[%clk
0:02:14.7]} 22... Qd7 {[%clk 0:02:26.8]} 23. f3 {[%clk 0:02:11]} 23... h6 {[%clk
0:02:26.6]} 24. Bh4 {[%clk 0:02:10.3]} 24... g5 {[%clk 0:02:25.4]} 25. Bg3
{[%clk 0:02:06.4]} 25... Nh5 {[%clk 0:02:25.1]} 26. Bh2 {[%clk 0:02:07]} 26...
Qe6 {[%clk 0:02:21.5]} 27. Qxe6 {[%clk 0:02:01.7]} 27... fxe6 {[%clk 0:02:21.2]}
28. Bxd6 {[%clk 0:02:02.6]} 28... Kf7 {[%clk 0:02:18.9]} 29. g3 {[%clk
0:02:00.3]} 29... Nf6 {[%clk 0:02:16.7]} 30. Kf2 {[%clk 0:01:55]} 30... h5
{[%clk 0:02:15.7]} 31. Be5 {[%clk 0:01:47.6]} 31... Nd7 {[%clk 0:02:01.9]} 32.
Bxg7 {[%clk 0:01:44.8]} 32... Kxg7 {[%clk 0:02:02.1]} 33. Ke3 {[%clk 0:01:45.1]}
33... Kf6 {[%clk 0:02:02.4]} 34. f4 {[%clk 0:01:42.7]} 34... gxf4+ {[%clk
0:02:02]} 35. gxf4 {[%clk 0:01:43.6]} 35... Nf8 {[%clk 0:01:58.3]} 36. Nf3
{[%clk 0:01:42.7]} 36... Be8 {[%clk 0:01:55.5]} 37. Ne5 {[%clk 0:01:41.5]} 37...
Nd7 {[%clk 0:01:54.7]} 38. Bb5 {[%clk 0:01:37.9]} 38... Ke7 {[%clk 0:01:36.3]}
39. Nc6+ {[%clk 0:01:08.3]} 39... Kd6 {[%clk 0:01:34.6]} 40. Nxa7 {[%clk
0:01:06.8]} 40... Bg6 {[%clk 0:01:31.6]} 41. Nc8+ {[%clk 0:01:04.3]} 41... Kc7
{[%clk 0:01:28.7]} 42. Bxd7 {[%clk 0:01:04.3]} 42... Bf5 {[%clk 0:01:29.2]} 43.
Ne7 {[%clk 0:00:51.9]} 43... Kxd7 {[%clk 0:01:27.4]} 44. Nxf5 {[%clk 0:00:50.2]}
44... exf5 {[%clk 0:01:27.3]} 45. Kd3 {[%clk 0:00:48.8]} 45... b5 {[%clk
0:01:26.9]} 46. b3 {[%clk 0:00:48.8]} 46... h4 {[%clk 0:01:25.5]} 47. c4 {[%clk
0:00:49.1]} 47... Kc6 {[%clk 0:01:26.2]} 48. Kc3 {[%clk 0:00:48.6]} 48... dxc4
{[%clk 0:01:23.9]} 49. bxc4 {[%clk 0:00:49.5]} 49... bxc4 {[%clk 0:01:24.8]} 50.
Kxc4 {[%clk 0:00:50.4]} 1-0

[Event "Early-Titled-Tuesday-Blitz-January-16-2024"]
[Site "Chess.com"]
[Date "2024.01.16"]
[Round "1"]
[White "GameOverBro"]
[Black "mertfelin"]
[Result "1-0"]
[WhiteElo "2604"]
[BlackElo "2238"]
[TimeControl "180+1"]
[EndTime "8:06:16 PST"]
[Termination "GameOverBro won by resignation"]

1. e4 {[%clk 0:02:54.8]} 1... e5 {[%clk 0:02:59.1]} 2. Nf3 {[%clk 0:02:54.2]}
2... Nc6 {[%clk 0:02:59.3]} 3. Bb5 {[%clk 0:02:54.9]} 3... a6 {[%clk 0:02:59.6]}
4. Ba4 {[%clk 0:02:55.6]} 4... Nf6 {[%clk 0:02:59.8]} 5. d4 {[%clk 0:02:56.3]}
5... exd4 {[%clk 0:02:59.1]} 6. O-O {[%clk 0:02:56.6]} 6... Be7 {[%clk 0:02:59]}
7. e5 {[%clk 0:02:57.2]} 7... Ne4 {[%clk 0:02:59.6]} 8. Nxd4 {[%clk 0:02:57.9]}
8... O-O {[%clk 0:02:53.8]} 9. Bf4 {[%clk 0:02:57.2]} 9... Nc5 {[%clk
0:02:51.7]} 10. Bb3 {[%clk 0:02:57.5]} 10... Nxb3 {[%clk 0:02:36]} 11. cxb3
{[%clk 0:02:56.8]} 11... Bc5 {[%clk 0:02:35.2]} 12. Nf3 {[%clk 0:02:31.3]} 12...
h6 {[%clk 0:02:33.2]} 13. Nc3 {[%clk 0:02:30.6]} 13... Re8 {[%clk 0:02:23]} 14.
Qd5 {[%clk 0:02:28.1]} 14... Bf8 {[%clk 0:02:20.7]} 15. Rad1 {[%clk 0:02:21.9]}
15... Ne7 {[%clk 0:02:21.1]} 16. Qd3 {[%clk 0:02:13.1]} 16... Ng6 {[%clk
0:02:19.8]} 17. Bg3 {[%clk 0:02:13.4]} 17... b6 {[%clk 0:00:44.6]} 18. Rfe1
{[%clk 0:02:11.3]} 18... a5 {[%clk 0:00:43.2]} 19. h4 {[%clk 0:02:05.3]} 19...
Ne7 {[%clk 0:00:41.9]} 20. h5 {[%clk 0:02:00.6]} 20... Nc6 {[%clk 0:00:40.3]}
21. a3 {[%clk 0:01:51.5]} 21... Be7 {[%clk 0:00:30.4]} 22. Re4 {[%clk
0:01:22.6]} 22... d6 {[%clk 0:00:13.2]} 23. exd6 {[%clk 0:01:17.3]} 23... Bxd6
{[%clk 0:00:10.2]} 24. Bxd6 {[%clk 0:01:12.4]} 24... cxd6 {[%clk 0:00:09.2]} 25.
Qxd6 {[%clk 0:01:08.2]} 25... Bb7 {[%clk 0:00:04.5]} 26. Rxe8+ {[%clk
0:00:57.7]} 26... Qxe8 {[%clk 0:00:04.9]} 27. Qc7 {[%clk 0:00:57.6]} 27... Rc8
{[%clk 0:00:01.9]} 28. Qxb7 {[%clk 0:00:56.3]} 1-0

[Event "Early-Titled-Tuesday-Blitz-January-16-2024"]
[Site "Chess.com"]
[Date "2024.01.16"]
[Round "1"]
[White "Flaccidmoves"]
[Black "BardArtem"]
[Result "0-1"]
[WhiteElo "2436"]
[BlackElo "2802"]
[TimeControl "180+1"]
[EndTime "8:06:19 PST"]
[Termination "BardArtem won on time"]

1. c4 {[%clk 0:03:00.9]} 1... c6 {[%clk 0:02:54.2]} 2. d4 {[%clk 0:02:57.6]}
2... d5 {[%clk 0:02:53.7]} 3. cxd5 {[%clk 0:02:58.1]} 3... cxd5 {[%clk
0:02:54.6]} 4. Bg5 {[%clk 0:02:58.3]} 4... f6 {[%clk 0:02:50.9]} 5. Bd2 {[%clk
0:02:57]} 5... Nc6 {[%clk 0:02:51.1]} 6. Nc3 {[%clk 0:02:56.1]} 6... e5 {[%clk
0:02:50.5]} 7. e4 {[%clk 0:02:48.3]} 7... dxe4 {[%clk 0:02:47.4]} 8. d5 {[%clk
0:02:45]} 8... Nd4 {[%clk 0:02:42.3]} 9. Nge2 {[%clk 0:02:34.9]} 9... Ne7 {[%clk
0:02:29.2]} 10. Nxd4 {[%clk 0:02:29.4]} 10... exd4 {[%clk 0:02:30.1]} 11. Nxe4
{[%clk 0:02:29.2]} 11... Qxd5 {[%clk 0:02:26]} 12. Bd3 {[%clk 0:02:25.4]} 12...
Nc6 {[%clk 0:02:08.9]} 13. Qf3 {[%clk 0:02:18.8]} 13... Be6 {[%clk 0:01:55.2]}
14. O-O {[%clk 0:02:09.3]} 14... Be7 {[%clk 0:01:46.2]} 15. Rac1 {[%clk
0:02:02.8]} 15... Ne5 {[%clk 0:01:38.9]} 16. Qe2 {[%clk 0:01:22.6]} 16... Nxd3
{[%clk 0:01:27.1]} 17. Qxd3 {[%clk 0:01:23.5]} 17... O-O {[%clk 0:01:26.4]} 18.
Rc7 {[%clk 0:01:13.9]} 18... Rfe8 {[%clk 0:01:20.6]} 19. Rfc1 {[%clk 0:01:03.5]}
19... Bf5 {[%clk 0:01:10]} 20. f3 {[%clk 0:01:02.3]} 20... Bd6 {[%clk
0:01:08.5]} 21. R7c4 {[%clk 0:00:04.7]} 21... Bxe4 {[%clk 0:00:54.3]} 22. fxe4
{[%clk 0:00:05.6]} 22... Qxe4 {[%clk 0:00:51.9]} 23. Qxd4 {[%clk 0:00:02.6]}
23... Qxd4+ {[%clk 0:00:51.5]} 24. Rxd4 {[%clk 0:00:03.5]} 24... Rad8 {[%clk
0:00:51.1]} 0-1